bitfinex/quotes_SOLUSD_20251019
["timestamp","ask_amount","ask_price","bid_price","bid_amount"]
[1760878335690,0.71,189.15,189.13,26.78]
[1760878335889,0.71,189.14,189.13,26.78]
[1760878338675,0.71,189.14,189.09,5.28848696]
[1760878338883,0.71,189.13,189.11,26.78]
[1760878339176,6.14646655,189.19,189.11,26.78]
[1760878339375,0.71,189.14,189.11,26.78]
[1760878339670,0.2,189.19,189.15,22.88]
[1760878339884,0.71,189.18,189.16,26.78]
[1760878340091,0.71,189.17,189.16,26.78]
[1760878341480,0.71,189.17,189.16,32.06652992]
[1760878341684,0.91,189.19,189.16,32.06652992]
[1760878341990,0.71,189.18,189.16,32.06652992]
[1760878342390,0.2,189.19,189.16,32.06652992]
[1760878342590,0.91,189.19,189.16,32.06652992]
[1760878343077,0.2,189.19,189.17,0.33]
[1760878343277,0.2,189.19,189.16,45.28285472]
[1760878343518,0.2,189.19,189.16,45.61285472]
[1760878343694,0.2,189.19,189.16,45.28285472]
[1760878345007,0.71,189.18,189.16,32.06652992]
[1760878345210,0.71,189.17,189.16,32.06652992]
[1760878345406,0.71,189.17,189.16,5.28652992]
[1760878345588,0.91,189.19,189.16,32.06652992]
[1760878345789,0.71,189.18,189.16,32.06652992]
[1760878346298,0.71,189.17,189.16,32.06652992]
[1760878347701,0.2,189.19,189.16,32.06652992]
[1760878347907,0.71,189.17,189.16,5.28652992]
[1760878348102,0.71,189.17,189.16,32.06652992]
[1760878348303,0.91,189.19,189.16,32.06652992]
[1760878348505,0.71,189.18,189.16,32.06652992]
[1760878349009,0.71,189.17,189.16,32.06652992]
[1760878350904,0.2,189.19,189.16,32.06652992]
[1760878351497,0.71,189.18,189.16,32.06652992]
[1760878351696,0.2,189.19,189.16,32.06652992]
[1760878351910,0.71,189.18,189.16,32.06652992]
[1760878352112,0.71,189.17,189.16,32.06652992]
[1760878353703,0.2,189.19,189.16,32.06652992]
[1760878353899,0.71,189.18,189.16,32.06652992]
[1760878354098,0.2,189.19,189.16,32.06652992]
[1760878354300,0.71,189.18,189.16,32.06652992]
[1760878359622,0.71,189.17,189.14,61.4]
[1760878359802,0.71,189.16,189.15,26.78]
[1760878360320,0.71,189.16,189.14,88.18]
[1760878360620,0.71,189.15,189.14,88.18]
[1760878360823,0.71,189.15,189.13,5.28711899]
[1760878361014,0.71,189.15,189.14,32.06708892]
[1760878361322,0.71,189.17,189.14,32.06708892]
[1760878361500,0.71,189.16,189.14,32.06708892]
[1760878361830,0.71,189.18,189.14,32.06708892]
[1760878361995,0.71,189.17,189.14,32.06708892]
[1760878363097,0.71,189.16,189.14,26.78]
[1760878363299,0.71,189.15,189.14,26.78]
[1760878363925,0.71,189.15,189.09,5.28829158]
[1760878364231,0.65,189.14,189.1,26.78]
[1760878364537,0.65,189.13,189.1,26.78]
[1760878364721,0.65,189.13,189.1,32.0681904]
[1760878365336,0.65,189.12,189.08,5.28876665]
[1760878365538,0.65,189.11,189.09,26.78]
[1760878366430,0.65,189.11,189.09,32.06842851]
[1760878366935,0.65,189.1,189.08,5.28875599]
[1760878367130,5.28709353,189.14,189.09,26.78]
[1760878367131,22.88,189.11,189.09,26.78]
[1760878367815,1.31102591,189.1,189.02,5.29044545]
[1760878368032,0.65,189.09,189.03,27.11]
[1760878369039,22.88,189.06,188.99,13.7577041]
[1760878369230,22.88,189.06,189.0,27.11]
[1760878369433,22.88,189.06,189.01,0.33]
[1760878369630,22.88,189.06,189.0,26.78]
[1760878369631,22.88,189.06,189.02,0.33]
[1760878369838,22.88,189.06,189.0,26.78]
[1760878370040,22.88,189.06,189.0,27.11]
[1760878370338,22.88,189.06,189.0,32.40100529]
[1760878370840,23.53,189.06,189.0,32.40100529]
[1760878371022,0.65,189.06,189.0,32.40100529]
[1760878371433,0.65,189.05,189.0,32.07100529]
[1760878371633,0.65,189.04,189.0,32.07100529]
[1760878372033,0.65,189.04,189.0,32.40100529]
[1760878372228,0.65,189.06,189.0,45.29851851]
[1760878372434,0.65,189.06,189.01,0.33]
[1760878374048,0.65,189.06,189.02,5.29044545]
[1760878374248,0.65,189.06,189.03,26.78]
[1760878375243,0.65,189.06,189.03,32.0700165]
[1760878376156,0.66106087,189.09,189.03,106.69543045]
[1760878376357,0.65,189.12,189.04,0.33]
[1760878376654,0.65,189.12,189.04,61.73]
[1760878376840,0.65,189.12,189.05,0.33]
[1760878377042,0.65,189.12,189.06,26.78]
[1760878377236,0.65,189.12,189.06,27.11]
[1760878377552,0.65,189.12,189.07,5.28904638]
[1760878377928,0.65,189.12,189.07,5.61904638]
[1760878378644,6.983126,189.14,189.08,0.33]
[1760878378849,6.983126,189.14,189.09,26.78]
[1760878379161,0.65,189.13,189.09,26.78]
[1760878379544,0.65,189.12,189.09,26.78]
[1760878379730,6.333126,189.14,189.1,0.33]
[1760878379930,6.983126,189.14,189.09,27.11]
[1760878380125,0.65,189.13,189.09,26.78]
[1760878380732,0.65,189.13,189.1,5.28820729]
[1760878381253,6.333126,189.14,189.1,5.61820729]
[1760878381452,6.333126,189.14,189.1,5.28820729]
[1760878381752,6.983126,189.14,189.1,5.28820729]
[1760878383234,6.333126,189.14,189.1,5.28820729]
[1760878383433,6.333126,189.14,189.11,0.33]
[1760878383651,6.333126,189.14,189.12,26.78]
[1760878384049,6.983126,189.14,189.12,26.78]
[1760878384336,6.983126,189.14,189.13,26.78]
[1760878385035,6.983126,189.14,189.11,26.78]
[1760878385250,0.65,189.13,189.11,26.78]
[1760878385467,0.65,189.12,189.11,26.78]
[1760878386054,0.65,189.12,189.06,5.28913964]
[1760878386252,11.62024747,189.14,189.07,26.78]
[1760878386253,0.65,189.11,189.07,26.78]
[1760878386446,0.65,189.1,189.08,26.78]
[1760878386650,0.65,189.09,189.08,26.78]
[1760878387371,5.93856856,189.09,189.02,5.29028496]
[1760878387545,0.65,189.08,189.02,26.78]
[1760878388045,0.65,189.07,189.02,26.78]
[1760878388365,0.65,189.06,189.02,26.78]
[1760878388549,0.65,189.05,189.02,26.78]
[1760878390057,0.65,189.04,189.02,26.78]
[1760878390262,0.68,189.04,189.02,26.78]
[1760878390567,0.68,189.03,189.02,26.78]
[1760878390942,22.88,189.04,189.02,26.78]
[1760878391361,23.56,189.04,189.02,26.78]
[1760878391551,0.68,189.03,189.02,26.78]
[1760878391746,23.56,189.04,189.02,26.78]
[1760878393772,23.6,189.04,189.02,26.78]
[1760878393962,0.72,189.03,189.02,26.78]
[1760878394161,0.72,189.03,188.99,0.2]
[1760878394349,0.72,189.03,188.99,26.98]
[1760878394549,0.72,189.02,188.99,26.98]
[1760878397850,0.72,189.01,188.99,0.2]
[1760878398552,0.66137566,189.0,188.99,0.2]
[1760878398751,1.38137566,189.0,188.99,0.2]
[1760878399769,23.54134066,189.01,188.99,0.2]
[1760878400168,22.88,189.01,188.99,0.2]
[1760878402379,22.88,189.02,188.99,5.49116679]
[1760878402567,0.66113079,189.07,189.0,26.78]
[1760878402755,0.72,189.01,188.99,0.2]
[1760878402953,22.88,189.03,189.0,26.78]
[1760878403150,0.72,189.02,189.0,26.78]
[1760878403477,0.72,189.01,189.0,26.78]
[1760878403782,0.72,189.01,188.99,0.2]
[1760878403984,22.88,189.03,188.99,0.2]
[1760878404277,23.6,189.03,188.99,0.2]
[1760878404482,22.88,189.03,188.99,0.53]
[1760878404791,22.88,189.03,188.99,5.82124519]
[1760878405881,23.6,189.03,188.99,5.82124519]
[1760878406069,23.6,189.03,188.99,5.49124519]
[1760878407476,22.88,189.04,189.0,0.33]
[1760878407779,0.72,189.06,189.01,26.78]
[1760878407965,0.72,189.05,189.01,26.78]
[1760878408363,0.72,189.05,189.01,27.11]
[1760878408682,0.72,189.05,189.01,26.78]
[1760878409480,0.72,189.07,189.02,5.29044545]
[1760878409985,0.72,189.09,189.03,0.33]
[1760878411663,0.72,189.09,189.04,5.28988573]
[1760878411862,0.72,189.08,189.05,26.78]
[1760878412587,28.16829596,189.1,189.04,5.28988573]
[1760878412777,0.72,189.07,189.05,26.78]
[1760878412979,0.72,189.06,189.05,26.78]
[1760878414491,24.26116576,189.06,189.02,26.78]
[1760878414789,0.72,189.05,189.02,26.78]
[1760878414960,0.72,189.04,189.02,26.78]
[1760878415166,0.72,189.03,189.02,26.78]
[1760878416063,23.6,189.03,189.02,26.78]
[1760878416268,23.6,189.03,189.0,26.78]
[1760878416469,0.72,189.02,189.0,26.78]
[1760878417274,0.72,189.01,189.0,26.78]
[1760878417476,0.72,189.01,188.99,0.2]
[1760878417674,0.72,189.0,188.99,0.2]
[1760878418070,0.72,189.02,188.99,0.2]
[1760878418273,0.72,189.01,188.99,0.2]
[1760878418468,0.72,189.0,188.99,0.2]
[1760878421091,6.01100529,189.0,188.99,0.2]
[1760878425605,0.72,189.0,188.99,0.2]
[1760878425813,0.66134066,189.01,188.99,0.2]
[1760878426188,0.68,189.03,188.99,0.2]
[1760878426504,1.34127069,189.03,188.99,0.2]
[1760878427598,0.68,189.02,188.99,0.2]
[1760878428813,5.95145296,189.03,188.99,0.2]
[1760878429111,0.68,189.01,188.99,0.2]
[1760878429314,0.68,189.0,188.99,0.2]
[1760878431207,0.68,189.02,188.99,0.2]
[1760878431712,5.95145296,189.03,188.99,0.2]
[1760878432014,0.68,189.01,188.99,0.2]
[1760878432910,0.66127069,189.03,188.99,0.2]
[1760878433088,0.68,189.02,188.99,0.2]
[1760878435001,5.9515959,189.03,188.99,0.2]
[1760878435190,0.68,189.02,188.99,0.2]
[1760878435585,0.68,189.01,188.99,0.2]
[1760878436688,0.68,189.0,188.99,0.2]
[1760878437983,0.68,189.02,188.99,0.2]
[1760878438185,0.68,189.01,188.99,0.2]
[1760878440526,0.68,189.0,188.99,0.2]
[1760878443719,5.29051502,189.02,188.99,0.2]
[1760878444015,0.68,189.05,189.0,26.78]
[1760878444234,0.68,189.05,189.0,27.11]
[1760878444640,0.68,189.04,189.0,26.78]
[1760878444799,0.68,189.03,189.0,26.78]
[1760878449126,28.84973656,189.05,189.0,32.40097271]
[1760878450228,28.84973656,189.05,189.0,32.07097271]
[1760878450425,28.84973656,189.05,189.0,32.40097271]
[1760878450923,28.16973656,189.05,189.0,32.40097271]
[1760878451122,0.7,189.04,189.0,32.07097271]
[1760878452327,28.16973656,189.05,189.0,32.07097271]
[1760878452328,0.7,189.03,189.0,26.78]
[1760878452633,0.7,189.02,189.0,26.78]
[1760878453318,0.7,189.01,189.0,26.78]
[1760878453503,0.7,189.03,189.0,26.78]
[1760878453717,0.7,189.02,189.0,26.78]
[1760878454338,6.62133888,189.04,189.0,26.78]
[1760878454535,0.67,189.03,189.0,26.78]
[1760878454930,0.67,189.02,189.0,26.78]
[1760878455336,0.67,189.02,188.99,0.2]
[1760878455551,5.96010317,189.04,188.99,32.6012519]
[1760878455729,0.67,189.03,188.99,32.6012519]
[1760878456041,0.67,189.03,188.99,32.2712519]
[1760878456246,0.67,189.03,188.99,32.6012519]
[1760878456429,0.67,189.03,188.99,32.2712519]
[1760878456820,0.67,189.03,188.99,32.6012519]
[1760878457529,5.29010317,189.04,188.99,32.6012519]
[1760878457836,5.96010317,189.04,188.99,32.6012519]
[1760878458149,0.67,189.03,188.99,32.2712519]
[1760878459949,0.67,189.02,188.99,32.2712519]
[1760878460141,0.67,189.01,188.99,26.98]
[1760878460730,0.67,189.0,188.99,0.2]
[1760878466355,5.96100529,189.0,188.99,0.2]
[1760878467647,6.62238095,189.0,188.99,0.2]
[1760878471335,28.8320776,189.01,188.99,0.2]
[1760878471550,0.67,189.0,188.99,0.2]
[1760878474348,0.67,189.02,188.99,0.2]
[1760878474558,22.88,189.0,188.99,0.2]
[1760878475863,22.88,189.01,188.99,0.53]
[1760878476158,22.88,189.01,188.99,0.2]
[1760878477638,0.67,189.05,188.99,0.2]
[1760878477838,0.67,189.05,189.0,0.33]
[1760878478039,22.88,189.03,189.0,0.33]
[1760878478256,22.88,189.03,188.99,32.27118781]
[1760878478459,22.88,189.03,188.99,32.60118781]
[1760878479153,22.88,189.03,188.99,32.27118781]
[1760878479451,0.67,189.02,188.99,32.27118781]
[1760878479654,22.88,189.03,188.99,32.27118781]
[1760878479866,23.55,189.03,188.99,32.27118781]
[1760878480150,23.55,189.03,188.99,32.60118781]
[1760878480353,23.55,189.03,188.99,32.27118781]
[1760878481551,23.55,189.03,188.99,32.60118781]
[1760878482244,23.55,189.03,188.99,32.27118781]
[1760878482860,23.55,189.03,188.99,32.60118781]
[1760878483759,0.67,189.03,188.99,32.27118781]
[1760878487062,0.67,189.03,188.99,32.60118781]
[1760878489056,0.66113079,189.07,189.0,0.33]
[1760878489568,5.2898501,189.1,189.0,61.73]
[1760878489569,1.38102591,189.1,189.0,61.73]
[1760878489858,0.72,189.12,189.03,22.88]
[1760878490058,6.99401211,189.14,189.05,18.51362073]
[1760878490363,6.333126,189.14,189.06,10.87647521]
[1760878490560,6.333126,189.14,189.07,27.11]
[1760878490561,7.053126,189.14,189.07,27.11]
[1760878490740,7.053126,189.14,189.08,0.33]
[1760878490936,12.34021732,189.14,189.07,26.78]
[1760878491135,1.38092105,189.13,189.07,26.78]
[1760878491366,0.72,189.12,189.07,26.78]
[1760878491561,0.72,189.11,189.07,26.78]
[1760878491865,0.72,189.1,189.07,26.78]
[1760878492446,0.72,189.12,189.07,32.06898279]
[1760878492652,5.94839081,189.13,189.07,32.06898279]
[1760878492968,0.72,189.11,189.07,32.06898279]
[1760878493259,0.72,189.1,189.07,32.06898279]
[1760878493962,5.94839081,189.13,189.07,32.06898279]
[1760878494147,0.72,189.12,189.07,32.06898279]
[1760878494885,0.72,189.11,189.07,32.06898279]
[1760878495165,0.72,189.11,189.07,32.39898279]
[1760878495360,0.72,189.11,189.07,32.06898279]
[1760878497172,0.72,189.11,189.07,32.39898279]
[1760878499583,0.72,189.11,189.07,32.06898279]
[1760878501076,0.72,189.1,189.07,26.78]
[1760878501277,5.28766679,189.12,189.07,26.78]
[1760878501479,0.72,189.13,189.08,0.33]
[1760878502175,0.72,189.12,189.08,0.33]
[1760878502384,0.72,189.11,189.07,32.0690359]
[1760878502571,0.72,189.1,189.07,26.78]
[1760878502752,0.72,189.1,189.07,32.068987]
[1760878503571,0.72,189.09,189.07,26.78]
[1760878503773,0.660956,189.12,189.05,26.76]
[1760878504074,0.72,189.09,189.05,26.76]
[1760878504465,0.72,189.08,189.05,26.76]
[1760878504685,0.72,189.07,189.05,26.76]
[1760878504869,0.72,189.06,189.05,26.76]
[1760878505578,0.72,189.06,189.01,5.29046187]
[1760878505776,0.72,189.05,189.02,26.76]
[1760878505973,1.38113079,189.07,189.03,26.76]
[1760878506173,22.88,189.08,189.03,27.09]
[1760878506480,23.6,189.08,189.03,27.09]
[1760878506664,0.72,189.07,189.03,27.09]
[1760878506865,22.88,189.08,189.03,27.09]
[1760878507073,0.72,189.07,189.03,27.09]
[1760878507274,0.72,189.07,189.03,26.76]
[1760878507774,0.72,189.06,189.03,26.76]
[1760878507981,28.88880825,189.08,189.03,26.76]
[1760878508160,0.72,189.07,189.03,26.76]
[1760878509575,0.72,189.06,189.03,26.76]
[1760878509973,0.72,189.05,189.03,26.76]
[1760878511455,5.28908367,189.07,189.03,26.76]
[1760878511654,5.28879502,189.08,189.03,27.09]
[1760878511972,0.7,189.07,189.03,27.09]
[1760878512785,0.7,189.07,189.03,26.76]
[1760878513170,0.7,189.06,189.03,26.76]
[1760878513860,5.2890613,189.07,189.03,26.76]
[1760878514158,0.69,189.06,189.03,26.76]
[1760878514358,5.2890613,189.07,189.03,26.76]
[1760878514572,5.9790613,189.07,189.03,26.76]
[1760878516177,0.69,189.07,189.03,26.76]
[1760878517780,28.85904719,189.07,189.03,26.76]
[1760878518171,22.88,189.07,189.03,32.05014904]
[1760878518367,23.57,189.07,189.03,32.38014904]
[1760878518764,22.88,189.08,189.04,0.33]
[1760878518971,22.88,189.08,189.05,0.33]
[1760878519188,5.97821524,189.1,189.06,26.76]
[1760878519669,5.28821524,189.1,189.06,26.76]
[1760878519866,0.69,189.09,189.06,26.76]
[1760878520965,0.69,189.08,189.06,26.76]
[1760878521284,23.57,189.07,189.06,26.76]
[1760878521992,23.57,189.07,189.03,88.16]
[1760878522171,0.69,189.06,189.03,88.16]
[1760878523274,22.88,189.07,189.03,88.16]
[1760878523483,0.69,189.06,189.03,26.76]
[1760878523782,23.57,189.07,189.03,26.76]
[1760878523984,22.88,189.07,189.04,0.33]
[1760878524182,6.63957787,189.09,189.04,0.33]
[1760878524488,0.69,189.08,189.03,32.05015571]
[1760878524991,0.69,189.07,189.03,32.05015571]
[1760878525386,0.66106087,189.09,189.03,26.76]
[1760878525594,0.69,189.06,189.03,26.76]
[1760878529092,0.69,189.05,189.03,26.76]
[1760878529893,0.66116576,189.06,189.03,26.76]
[1760878530188,0.69,189.04,189.03,26.76]
[1760878530994,0.69,189.04,188.99,5.82105177]
[1760878531176,0.69,189.04,189.0,26.76]
[1760878533496,5.28985987,189.05,189.0,26.76]
[1760878533671,5.28985987,189.05,189.0,32.05096889]
[1760878533871,0.69,189.04,189.0,26.76]
[1760878534072,5.28985987,189.05,189.0,26.76]
[1760878534278,0.69,189.04,189.0,26.76]
[1760878534876,5.28985987,189.05,189.0,32.05093079]
[1760878535076,5.28985987,189.05,189.01,0.33]
[1760878535274,5.97985987,189.05,189.0,32.05093079]
[1760878535478,5.97985987,189.05,189.0,32.38093079]
[1760878535793,0.69,189.04,189.0,32.38093079]
[1760878536491,5.28985987,189.05,189.01,0.33]
[1760878536694,5.97985987,189.05,189.01,0.33]
[1760878537094,5.28985987,189.05,189.02,0.33]
[1760878537575,5.28985987,189.05,189.0,32.38093079]
[1760878537771,5.28985987,189.05,189.01,0.33]
[1760878538292,0.69,189.04,189.0,32.05093079]
[1760878538501,0.69,189.03,189.0,26.76]
[1760878538677,0.69,189.02,189.0,26.76]
[1760878539076,0.69,189.03,189.0,26.76]
[1760878545797,5.28961149,189.05,189.0,26.76]
[1760878545984,36.77269667,189.07,189.01,0.33]
[1760878547387,5.28935744,189.06,189.01,0.33]
[1760878547587,5.95935744,189.06,189.01,0.33]
[1760878548188,5.95935744,189.06,189.01,5.29070362]
[1760878548189,0.67,189.06,189.01,5.29070362]
[1760878548389,5.28908601,189.07,189.01,5.29070362]
[1760878548585,0.67,189.05,189.01,5.29070362]
[1760878548989,5.9502168,189.07,189.01,5.29070362]
[1760878549192,5.95938938,189.06,189.01,5.29070362]
[1760878549398,1.33120074,189.05,188.99,0.2]
[1760878549598,22.88,189.03,189.0,26.76]
[1760878549788,0.67,189.02,189.0,26.76]
[1760878550786,28.17020764,189.03,189.0,26.76]
[1760878551000,28.84020764,189.03,189.0,26.76]
[1760878552379,23.55,189.03,189.0,26.76]
[1760878552990,22.88,189.03,189.0,26.76]
[1760878553199,0.67,189.02,189.0,26.76]
[1760878554689,0.67,189.01,189.0,26.76]
[1760878556917,28.17018657,189.03,189.0,26.76]
[1760878557210,0.67,189.02,189.0,26.76]
[1760878558406,22.88,189.03,189.0,26.76]
[1760878558609,23.55,189.03,189.0,26.76]
[1760878559318,22.88,189.03,189.0,26.76]
[1760878559517,0.67,189.02,189.0,26.76]
[1760878560525,23.55,189.03,189.0,26.76]
[1760878560814,22.88,189.03,189.0,26.76]
[1760878561106,0.67,189.02,189.0,26.76]
[1760878562720,22.88,189.03,189.0,26.76]
[1760878562893,23.55,189.03,189.0,26.76]
[1760878563490,22.88,189.03,189.0,26.76]
[1760878563808,197.21812209,189.21,189.01,0.33]
[1760878563809,0.67,189.07,189.01,0.33]
[1760878564013,0.67,189.09,189.01,72.60647521]
[1760878564199,0.67,189.09,189.02,11.20647521]
[1760878564400,0.67,189.11,189.03,27.09]
[1760878564599,22.88,189.09,189.04,27.09]
[1760878564799,23.55,189.09,189.05,0.33]
[1760878565112,0.67,189.08,189.04,26.76]
[1760878565292,0.67,189.08,189.04,32.37976345]
[1760878565607,5.28831998,189.1,189.05,0.33]
[1760878565804,0.67,189.09,189.04,32.04976345]
[1760878566008,0.67,189.09,189.04,32.37976345]
[1760878572420,0.67,189.09,189.04,32.04976345]
[1760878572717,0.67,189.09,189.05,5.28959914]
[1760878572919,0.660956,189.12,189.06,0.33]
[1760878572920,0.66,189.12,189.06,0.33]
[1760878573123,0.66,189.12,189.07,26.76]
[1760878573623,0.66,189.12,189.08,0.33]
[1760878573917,0.66092105,189.13,189.07,26.76]
[1760878574129,0.66,189.12,189.07,26.76]
[1760878574317,0.66,189.11,189.07,26.76]
[1760878574819,0.66,189.11,189.07,32.04889809]
[1760878575005,6.60835567,189.13,189.07,32.04889809]
[1760878575323,0.66,189.12,189.07,32.04889809]
[1760878575709,0.66,189.12,189.07,32.37889809]
[1760878576900,5.94835567,189.13,189.07,32.37889809]
[1760878577217,0.66,189.12,189.07,32.37889809]
[1760878577615,29.213126,189.14,189.08,0.33]
[1760878578329,6.333126,189.14,189.08,0.33]
[1760878579024,6.993126,189.14,189.08,0.33]
[1760878579204,6.993126,189.14,189.09,18.50970436]
[1760878579205,6.333126,189.14,189.09,18.50970436]
[1760878579412,6.333126,189.14,189.1,27.07]
[1760878579812,6.333126,189.14,189.1,26.74]
[1760878580012,6.333126,189.14,189.1,27.07]
[1760878580326,6.333126,189.14,189.11,5.28792766]
[1760878581020,22.88,189.07,189.02,0.72]
[1760878581201,0.66,189.08,189.03,0.72]
[1760878581408,3.66263695,189.13,189.04,26.82]
[1760878581409,6.333126,189.13,189.04,26.82]
[1760878581714,29.87401211,189.14,189.05,11.59647521]
[1760878581921,0.66,189.13,189.06,0.72]
[1760878582219,0.66,189.13,189.07,26.82]
[1760878582424,5.94744651,189.13,189.08,0.72]
[1760878582614,5.94744651,189.13,189.07,26.82]
[1760878582819,0.66,189.12,189.07,26.82]
[1760878583427,0.66,189.11,189.07,27.54]
[1760878583630,23.54,189.1,189.05,0.72]
[1760878583924,23.54,189.1,189.07,26.82]
[1760878584115,0.66,189.09,189.07,26.82]
[1760878584514,5.94867417,189.09,189.07,26.82]
[1760878585706,5.28867417,189.09,189.07,26.82]
[1760878585927,22.88,189.1,189.07,26.82]
[1760878585928,5.28792766,189.11,189.08,0.72]
[1760878586326,0.66,189.1,189.07,26.82]
[1760878586908,5.28792766,189.11,189.07,27.54]
[1760878587109,5.94792766,189.11,189.07,27.54]
[1760878587818,5.28766116,189.12,189.08,0.72]
[1760878588213,28.16766116,189.12,189.07,26.82]
[1760878588416,22.88,189.1,189.09,0.72]
[1760878588948,22.88,189.11,189.09,0.72]
[1760878590035,22.88,189.11,189.1,0.72]
[1760878590645,22.88,189.11,189.08,0.72]
[1760878590846,22.88,189.11,189.07,32.10900359]
[1760878591040,22.88,189.11,189.09,0.72]
[1760878595036,23.54,189.11,189.07,26.82]
[1760878595238,23.54,189.11,189.07,0.72]
[1760878595432,23.54,189.11,189.08,26.8]
[1760878596330,28.82806902,189.11,189.07,0.72]
[1760878596531,0.66,189.1,189.04,6.00985658]
[1760878596841,0.66,189.09,189.05,26.8]
[1760878597045,0.66,189.08,189.05,26.8]
[1760878597245,0.66,189.08,189.05,27.52]
[1760878597631,0.66,189.09,189.05,0.72]
[1760878597948,0.66,189.09,189.06,26.8]
[1760878601829,0.66,189.09,189.06,27.52]
[1760878602155,5.94941768,189.1,189.06,27.52]
[1760878602335,6.60941768,189.1,189.06,27.52]
[1760878604542,0.66,189.1,189.06,27.52]
[1760878605039,23.54099095,189.11,189.07,0.69]
[1760878605040,22.88,189.11,189.07,0.69]
[1760878605239,11.62022371,189.14,189.07,0.69]
[1760878605636,11.62022371,189.14,189.08,5.28876665]
[1760878605935,11.62022371,189.14,189.09,27.47]
[1760878606256,11.62022371,189.14,189.1,0.69]
[1760878606474,12.97110982,189.14,189.1,0.69]
[1760878607440,12.31022371,189.14,189.1,0.69]
[1760878607836,11.62022371,189.14,189.11,0.69]
[1760878608656,11.62022371,189.14,189.12,26.78]
[1760878611057,6.333126,189.14,189.13,0.69]
[1760878613058,6.333126,189.14,189.12,26.78]
[1760878613646,0.69,189.13,189.09,0.69]
[1760878613856,0.69,189.13,189.1,26.78]
[1760878614046,6.333126,189.14,189.11,26.78]
[1760878614452,6.333126,189.14,189.11,27.47]
[1760878614659,12.31026485,189.14,189.11,26.78]
[1760878616056,7.023126,189.14,189.11,26.78]
[1760878616260,6.333126,189.14,189.12,0.69]
[1760878617969,6.99401211,189.14,189.11,26.78]
[1760878618150,12.97115395,189.14,189.11,26.78]
[1760878618349,0.69,189.13,189.11,26.78]
[1760878618570,0.69,189.13,189.1,0.69]
[1760878618748,6.333126,189.14,189.12,26.76]
[1760878619150,6.333126,189.14,189.12,27.45]
[1760878619459,6.333126,189.14,189.12,26.76]
[1760878619845,12.3102261,189.14,189.12,26.76]
[1760878620057,1.35092105,189.13,189.12,26.76]
[1760878621656,1.35092105,189.13,189.11,26.76]
[1760878622765,6.63831932,189.13,189.11,26.76]
[1760878622974,0.69,189.12,189.1,26.76]
[1760878624170,5.9777209,189.12,189.1,26.76]
[1760878626469,0.69,189.12,189.1,26.76]